[Event "Early-Titled-Tuesday-Blitz-July-09-2024"]
[Site "Chess.com"]
[Date "2024.07.09"]
[Round "1"]
[White "JueIes"]
[Black "abelmat"]
[Result "1-0"]
[WhiteElo "2558"]
[BlackElo "2110"]
[TimeControl "180+1"]
[EndTime "8:07:35 PDT"]
[Termination "JueIes won on time"]

1. d4 {[%clk 0:02:51]} 1... d5 {[%clk 0:02:59.8]} 2. c4 {[%clk 0:02:51]} 2... e6
{[%clk 0:02:59.9]} 3. Nc3 {[%clk 0:02:50.7]} 3... Nf6 {[%clk 0:03:00.3]} 4. Bg5
{[%clk 0:02:50.3]} 4... Be7 {[%clk 0:03:00.3]} 5. e3 {[%clk 0:02:50.1]} 5...
Nbd7 {[%clk 0:02:59.8]} 6. Nf3 {[%clk 0:02:49.1]} 6... h6 {[%clk 0:02:58.5]} 7.
Bh4 {[%clk 0:02:48.8]} 7... b6 {[%clk 0:02:56]} 8. cxd5 {[%clk 0:02:48]} 8...
exd5 {[%clk 0:02:56]} 9. Rc1 {[%clk 0:02:46]} 9... O-O {[%clk 0:02:54.8]} 10.
Bd3 {[%clk 0:02:45.5]} 10... Bb7 {[%clk 0:02:54.2]} 11. O-O {[%clk 0:02:43.4]}
11... c5 {[%clk 0:02:50]} 12. Bb1 {[%clk 0:02:40.4]} 12... Ne4 {[%clk
0:02:43.9]} 13. Bxe7 {[%clk 0:02:36.6]} 13... Qxe7 {[%clk 0:02:43.7]} 14. dxc5
{[%clk 0:02:34.2]} 14... Nxc3 {[%clk 0:02:43.5]} 15. Rxc3 {[%clk 0:02:33.4]}
15... bxc5 {[%clk 0:02:34.2]} 16. Qa4 {[%clk 0:02:26]} 16... Rfc8 {[%clk
0:02:16.9]} 17. Rfc1 {[%clk 0:02:21.1]} 17... g6 {[%clk 0:02:10]} 18. Qf4 {[%clk
0:02:17.9]} 18... Kg7 {[%clk 0:02:00.9]} 19. h4 {[%clk 0:02:17.5]} 19... h5
{[%clk 0:01:59.6]} 20. Ng5 {[%clk 0:02:03.2]} 20... Nf6 {[%clk 0:01:45.8]} 21.
Qg3 {[%clk 0:01:53.8]} 21... a5 {[%clk 0:01:17.3]} 22. Nf3 {[%clk 0:01:37.7]}
22... d4 {[%clk 0:00:51.6]} 23. exd4 {[%clk 0:01:28.8]} 23... Bxf3 {[%clk
0:00:50.9]} 24. Qxf3 {[%clk 0:01:22.4]} 24... Ng4 {[%clk 0:00:32]} 25. dxc5
{[%clk 0:01:18.7]} 25... Qxh4 {[%clk 0:00:26.4]} 26. Qg3 {[%clk 0:01:17.6]}
26... Qf6 {[%clk 0:00:20]} 27. c6 {[%clk 0:01:14.3]} 27... Ra6 {[%clk
0:00:15.9]} 28. c7 {[%clk 0:01:13.4]} 28... Rb6 {[%clk 0:00:14.1]} 29. b3 {[%clk
0:01:12.2]} 29... Rd6 {[%clk 0:00:12.2]} 30. Rf3 {[%clk 0:00:47]} 30... Qe7
{[%clk 0:00:11.3]} 31. Rfc3 {[%clk 0:00:40.2]} 31... Rd7 {[%clk 0:00:10]} 32.
Bd3 {[%clk 0:00:32.9]} 32... Qg5 {[%clk 0:00:07]} 33. Ba6 {[%clk 0:00:18]} 33...
Ra8 {[%clk 0:00:04.9]} 34. c8=Q {[%clk 0:00:17.1]} 34... Rxc8 {[%clk 0:00:04.4]}
35. Bxc8 {[%clk 0:00:17.6]} 35... Rd2 {[%clk 0:00:04.9]} 36. Bxg4 {[%clk
0:00:17.3]} 36... hxg4 {[%clk 0:00:04]} 37. Qe3 {[%clk 0:00:17.3]} 37... Qe7
{[%clk 0:00:03.2]} 38. Qxe7 {[%clk 0:00:17.2]} 38... g3 {[%clk 0:00:02.9]} 39.
Qe5+ {[%clk 0:00:17.4]} 1-0

[Event "Early-Titled-Tuesday-Blitz-July-09-2024"]
[Site "Chess.com"]
[Date "2024.07.09"]
[Round "1"]
[White "Mr_ruthless"]
[Black "AryanTari"]
[Result "0-1"]
[WhiteElo "2523"]
[BlackElo "3001"]
[TimeControl "180+1"]
[EndTime "8:07:36 PDT"]
[Termination "AryanTari won by resignation"]

1. e4 {[%clk 0:03:00.9]} 1... e5 {[%clk 0:02:56.6]} 2. Nf3 {[%clk 0:03:00.6]}
2... Nc6 {[%clk 0:02:55.6]} 3. Bc4 {[%clk 0:03:00.7]} 3... Nf6 {[%clk
0:02:55.3]} 4. d3 {[%clk 0:03:00.7]} 4... Bc5 {[%clk 0:02:55.8]} 5. c3 {[%clk
0:03:00]} 5... d6 {[%clk 0:02:55.8]} 6. O-O {[%clk 0:02:58]} 6... a5 {[%clk
0:02:56.2]} 7. h3 {[%clk 0:02:51.1]} 7... O-O {[%clk 0:02:54.7]} 8. Re1 {[%clk
0:02:50.9]} 8... h6 {[%clk 0:02:47.3]} 9. Nbd2 {[%clk 0:02:41.1]} 9... Be6
{[%clk 0:02:47.2]} 10. Bb5 {[%clk 0:02:38.7]} 10... Bb6 {[%clk 0:02:47.3]} 11.
Nf1 {[%clk 0:02:36.2]} 11... Ne7 {[%clk 0:02:45.7]} 12. d4 {[%clk 0:02:32.8]}
12... exd4 {[%clk 0:02:44.8]} 13. Nxd4 {[%clk 0:02:27.9]} 13... Bd7 {[%clk
0:02:42.9]} 14. Bxd7 {[%clk 0:02:24.3]} 14... Qxd7 {[%clk 0:02:40.6]} 15. Ng3
{[%clk 0:02:25]} 15... Ng6 {[%clk 0:02:40.1]} 16. Be3 {[%clk 0:02:24.5]} 16...
Rae8 {[%clk 0:02:30.1]} 17. Qc2 {[%clk 0:02:23.6]} 17... d5 {[%clk 0:02:29.7]}
18. exd5 {[%clk 0:01:36.2]} 18... Nxd5 {[%clk 0:02:30.6]} 19. Ndf5 {[%clk
0:01:18.8]} 19... Nxe3 {[%clk 0:02:26.8]} 20. Nxe3 {[%clk 0:01:19.7]} 20... Nf4
{[%clk 0:02:15.5]} 21. Rad1 {[%clk 0:01:13.4]} 21... Qc6 {[%clk 0:02:15.6]} 22.
Ngf5 {[%clk 0:00:45.8]} 22... Qg6 {[%clk 0:02:14.6]} 23. Kf1 {[%clk 0:00:33.9]}
23... Re5 {[%clk 0:02:08.9]} 24. Nd4 {[%clk 0:00:11]} 24... Qxc2 {[%clk
0:01:46.3]} 25. Nexc2 {[%clk 0:00:11.9]} 25... Rxe1+ {[%clk 0:01:45.7]} 26. Rxe1
{[%clk 0:00:12.8]} 26... Nd3 {[%clk 0:01:43.9]} 27. Rb1 {[%clk 0:00:12.7]} 27...
Re8 {[%clk 0:01:43.9]} 28. Ne1 {[%clk 0:00:11.6]} 28... Nf4 {[%clk 0:01:34.9]}
29. Nef3 {[%clk 0:00:11]} 29... Kf8 {[%clk 0:01:12.5]} 30. h4 {[%clk 0:00:11.4]}
30... h5 {[%clk 0:01:01.9]} 31. g3 {[%clk 0:00:11.5]} 31... Nd3 {[%clk
0:01:02.1]} 32. Ne1 {[%clk 0:00:10.8]} 32... Ne5 {[%clk 0:01:02.2]} 33. Nec2
{[%clk 0:00:10.3]} 33... Nc4 {[%clk 0:01:01.5]} 34. Kg2 {[%clk 0:00:06.6]} 34...
g6 {[%clk 0:00:51.5]} 35. b3 {[%clk 0:00:05.9]} 35... Nd2 {[%clk 0:00:49.3]} 36.
Re1 {[%clk 0:00:05.8]} 36... Rxe1 {[%clk 0:00:49.3]} 37. Nxe1 {[%clk 0:00:06.7]}
37... Ne4 {[%clk 0:00:49.9]} 38. Ne2 {[%clk 0:00:05.7]} 38... Nxf2 {[%clk
0:00:47.2]} 39. Kf3 {[%clk 0:00:05.8]} 39... Ng4 {[%clk 0:00:46.3]} 40. Nd3
{[%clk 0:00:06.5]} 40... Ke7 {[%clk 0:00:45.5]} 41. Nef4 {[%clk 0:00:07.1]}
41... c6 {[%clk 0:00:44.8]} 42. c4 {[%clk 0:00:07.3]} 42... Kd6 {[%clk
0:00:44.8]} 43. Ne2 {[%clk 0:00:05.5]} 43... Ne5+ {[%clk 0:00:42.8]} 44. Nxe5
{[%clk 0:00:05.9]} 44... Kxe5 {[%clk 0:00:43.7]} 45. g4 {[%clk 0:00:06.3]} 45...
hxg4+ {[%clk 0:00:42.6]} 46. Kxg4 {[%clk 0:00:07.2]} 46... Be3 {[%clk
0:00:35.5]} 47. Kf3 {[%clk 0:00:06.3]} 47... Bd2 {[%clk 0:00:35.2]} 48. Ng3
{[%clk 0:00:05.8]} 48... Be1 {[%clk 0:00:32.1]} 49. h5 {[%clk 0:00:06]} 49...
Bxg3 {[%clk 0:00:27.9]} 0-1

[Event "Early-Titled-Tuesday-Blitz-July-09-2024"]
[Site "Chess.com"]
[Date "2024.07.09"]
[Round "1"]
[White "seasidesunset"]
[Black "sergeikim"]
[Result "0-1"]
[WhiteElo "2239"]
[BlackElo "2592"]
[TimeControl "180+1"]
[EndTime "8:07:36 PDT"]
[Termination "sergeikim won by checkmate"]

1. c4 {[%clk 0:02:59.6]} 1... Nf6 {[%clk 0:02:59.1]} 2. g3 {[%clk 0:02:55.4]}
2... g6 {[%clk 0:02:59.3]} 3. Bg2 {[%clk 0:02:54.3]} 3... Bg7 {[%clk 0:02:59.3]}
4. Nc3 {[%clk 0:02:55]} 4... d6 {[%clk 0:02:59.6]} 5. e4 {[%clk 0:02:55.3]} 5...
O-O {[%clk 0:02:59.9]} 6. Nge2 {[%clk 0:02:56]} 6... e5 {[%clk 0:03:00.3]} 7. d3
{[%clk 0:02:56.4]} 7... c6 {[%clk 0:02:58.5]} 8. O-O {[%clk 0:02:56.5]} 8... a5
{[%clk 0:02:55.4]} 9. h3 {[%clk 0:02:52.8]} 9... Nh5 {[%clk 0:02:51.8]} 10. g4
{[%clk 0:02:03.5]} 10... Nf6 {[%clk 0:02:50.4]} 11. f4 {[%clk 0:02:01.1]} 11...
exf4 {[%clk 0:02:50.3]} 12. Bxf4 {[%clk 0:01:59.9]} 12... Na6 {[%clk 0:02:41.4]}
13. Ng3 {[%clk 0:01:57.3]} 13... Ne8 {[%clk 0:02:33.9]} 14. d4 {[%clk 0:01:51]}
14... Nec7 {[%clk 0:02:24.1]} 15. Kh2 {[%clk 0:01:44.9]} 15... Ne6 {[%clk
0:02:15.4]} 16. Be3 {[%clk 0:01:44.8]} 16... c5 {[%clk 0:02:13.6]} 17. d5 {[%clk
0:01:43.1]} 17... Nd4 {[%clk 0:02:13]} 18. Qd2 {[%clk 0:01:37.6]} 18... Nb4
{[%clk 0:01:57.9]} 19. Rac1 {[%clk 0:01:32.1]} 19... Bd7 {[%clk 0:01:48.3]} 20.
Bg5 {[%clk 0:01:19.3]} 20... f6 {[%clk 0:01:35.4]} 21. Bh6 {[%clk 0:01:19.5]}
21... Bxh6 {[%clk 0:01:25.1]} 22. Qxh6 {[%clk 0:01:19.3]} 22... Nd3 {[%clk
0:01:25.5]} 23. Rb1 {[%clk 0:01:06]} 23... a4 {[%clk 0:01:22.8]} 24. Nce2 {[%clk
0:01:04.2]} 24... Nxe2 {[%clk 0:01:15.1]} 25. Nxe2 {[%clk 0:01:04.3]} 25... Qe7
{[%clk 0:01:14.1]} 26. Qe3 {[%clk 0:00:51.9]} 26... Ne5 {[%clk 0:01:10.9]} 27.
b3 {[%clk 0:00:49.2]} 27... b5 {[%clk 0:01:09.8]} 28. Qc3 {[%clk 0:00:38.8]}
28... b4 {[%clk 0:01:01.6]} 29. Qe3 {[%clk 0:00:37.6]} 29... axb3 {[%clk
0:01:01.6]} 30. axb3 {[%clk 0:00:38.3]} 30... Ra2 {[%clk 0:00:58.7]} 31. Ra1
{[%clk 0:00:25]} 31... Rfa8 {[%clk 0:00:55.7]} 32. Rxa2 {[%clk 0:00:24.7]} 32...
Rxa2 {[%clk 0:00:55.4]} 33. Nc1 {[%clk 0:00:16.2]} 33... Ra3 {[%clk 0:00:50.8]}
34. Qf4 {[%clk 0:00:16.1]} 34... Kg7 {[%clk 0:00:49.5]} 35. Rf2 {[%clk
0:00:12.9]} 35... Nf7 {[%clk 0:00:38.2]} 36. Ra2 {[%clk 0:00:12.6]} 36... Rxa2
{[%clk 0:00:36.7]} 37. Nxa2 {[%clk 0:00:12.5]} 37... Ne5 {[%clk 0:00:33.9]} 38.
Nc1 {[%clk 0:00:11.2]} 38... Qd8 {[%clk 0:00:32.5]} 39. Ne2 {[%clk 0:00:02.9]}
39... g5 {[%clk 0:00:26.4]} 40. Qe3 {[%clk 0:00:03.4]} 40... Bxg4 {[%clk
0:00:24.6]} 41. Ng3 {[%clk 0:00:02.9]} 41... Kg6 {[%clk 0:00:20.3]} 42. Bf3
{[%clk 0:00:03.4]} 42... Bxf3 {[%clk 0:00:19.5]} 43. Nf5 {[%clk 0:00:03.5]}
43... Qa5 {[%clk 0:00:17.9]} 44. h4 {[%clk 0:00:04]} 44... Qa2+ {[%clk
0:00:16.3]} 45. Kg3 {[%clk 0:00:04.7]} 45... Qg2# {[%clk 0:00:15.3]} 0-1

[Event "Early-Titled-Tuesday-Blitz-July-09-2024"]
[Site "Chess.com"]
[Date "2024.07.09"]
[Round "1"]
[White "bazar-wokzal"]
[Black "Millerkallpa"]
[Result "1/2-1/2"]
[WhiteElo "2583"]
[BlackElo "2239"]
[TimeControl "180+1"]
[EndTime "8:07:37 PDT"]
[Termination "Game drawn - insufficient material"]

1. e4 {[%clk 0:02:57.1]} 1... e5 {[%clk 0:02:58.1]} 2. Bc4 {[%clk 0:02:56.4]}
2... Nc6 {[%clk 0:02:57.6]} 3. f4 {[%clk 0:02:56.1]} 3... exf4 {[%clk
0:02:49.6]} 4. d4 {[%clk 0:02:55.8]} 4... Qh4+ {[%clk 0:02:46.2]} 5. Kf1 {[%clk
0:02:55.4]} 5... Nf6 {[%clk 0:02:31.6]} 6. Nf3 {[%clk 0:02:51.9]} 6... Qh5
{[%clk 0:02:30.5]} 7. Nc3 {[%clk 0:02:50.7]} 7... d6 {[%clk 0:02:23.1]} 8. Bxf4
{[%clk 0:02:49.4]} 8... Bg4 {[%clk 0:02:21.5]} 9. e5 {[%clk 0:02:13.3]} 9...
dxe5 {[%clk 0:02:16.2]} 10. dxe5 {[%clk 0:02:13]} 10... Nd7 {[%clk 0:02:15.6]}
11. e6 {[%clk 0:02:02.3]} 11... fxe6 {[%clk 0:02:13.3]} 12. Bxc7 {[%clk
0:02:01.8]} 12... Bc5 {[%clk 0:02:12]} 13. Ne4 {[%clk 0:01:47.9]} 13... Bxf3
{[%clk 0:01:49.5]} 14. gxf3 {[%clk 0:01:30.5]} 14... Qh3+ {[%clk 0:01:47.5]} 15.
Ke2 {[%clk 0:01:30.2]} 15... Nce5 {[%clk 0:01:09.9]} 16. Bxe5 {[%clk 0:01:21.3]}
16... Nxe5 {[%clk 0:01:06.2]} 17. Qf1 {[%clk 0:00:50.1]} 17... Qxf1+ {[%clk
0:01:01.3]} 18. Rhxf1 {[%clk 0:00:45.9]} 18... Nxc4 {[%clk 0:01:00.4]} 19. Nxc5
{[%clk 0:00:46.1]} 19... O-O-O {[%clk 0:00:58.7]} 20. b3 {[%clk 0:00:40]} 20...
Nd6 {[%clk 0:00:41.2]} 21. Rad1 {[%clk 0:00:38.1]} 21... Nf5 {[%clk 0:00:39.5]}
22. c3 {[%clk 0:00:37]} 22... b6 {[%clk 0:00:33.3]} 23. Ne4 {[%clk 0:00:34.4]}
23... h6 {[%clk 0:00:29.7]} 24. Rxd8+ {[%clk 0:00:29.7]} 24... Rxd8 {[%clk
0:00:29.1]} 25. Rd1 {[%clk 0:00:30.4]} 25... Rxd1 {[%clk 0:00:23.1]} 26. Kxd1
{[%clk 0:00:30.6]} 26... Kd7 {[%clk 0:00:23.6]} 27. Ke2 {[%clk 0:00:30.6]} 27...
Kc6 {[%clk 0:00:23.9]} 28. Kd3 {[%clk 0:00:30.7]} 28... Kd5 {[%clk 0:00:23.5]}
29. c4+ {[%clk 0:00:30.3]} 29... Ke5 {[%clk 0:00:23.5]} 30. c5 {[%clk
0:00:28.8]} 30... bxc5 {[%clk 0:00:22.5]} 31. Nxc5 {[%clk 0:00:29.1]} 31... Nh4
{[%clk 0:00:20.5]} 32. Ke3 {[%clk 0:00:27.9]} 32... Ng2+ {[%clk 0:00:20.4]} 33.
Kf2 {[%clk 0:00:27.3]} 33... Nf4 {[%clk 0:00:20.5]} 34. b4 {[%clk 0:00:27]}
34... Kd4 {[%clk 0:00:19.8]} 35. Kg3 {[%clk 0:00:26.4]} 35... g5 {[%clk
0:00:19.4]} 36. h4 {[%clk 0:00:26.5]} 36... Kc4 {[%clk 0:00:18.5]} 37. a3 {[%clk
0:00:25.7]} 37... a5 {[%clk 0:00:17.2]} 38. hxg5 {[%clk 0:00:23.8]} 38... hxg5
{[%clk 0:00:16.9]} 39. Ne4 {[%clk 0:00:19.4]} 39... axb4 {[%clk 0:00:15.1]} 40.
axb4 {[%clk 0:00:20]} 40... Kxb4 {[%clk 0:00:12.2]} 41. Nxg5 {[%clk 0:00:20.7]}
41... Ne2+ {[%clk 0:00:12.7]} 42. Kg4 {[%clk 0:00:20.5]} 42... Nd4 {[%clk
0:00:13.1]} 43. f4 {[%clk 0:00:19.9]} 43... Kc4 {[%clk 0:00:12.9]} 44. Nxe6
{[%clk 0:00:18.8]} 44... Nxe6 {[%clk 0:00:12.3]} 45. f5 {[%clk 0:00:19.7]} 45...
Nf8 {[%clk 0:00:12.4]} 46. Kg5 {[%clk 0:00:19.7]} 46... Kd5 {[%clk 0:00:13]} 47.
Kf6 {[%clk 0:00:20.2]} 47... Kd6 {[%clk 0:00:13.1]} 48. Kf7 {[%clk 0:00:20.5]}
48... Nd7 {[%clk 0:00:13.7]} 49. f6 {[%clk 0:00:19.6]} 49... Nxf6 {[%clk
0:00:13.7]} 1/2-1/2

[Event "Early-Titled-Tuesday-Blitz-July-09-2024"]
[Site "Chess.com"]
[Date "2024.07.09"]
[Round "1"]
[White "krzyzan94"]
[Black "AlexZambrano"]
[Result "1-0"]
[WhiteElo "2792"]
[BlackElo "2411"]
[TimeControl "180+1"]
[EndTime "8:07:39 PDT"]
[Termination "krzyzan94 won by checkmate"]

1. Nf3 {[%clk 0:03:00.9]} 1... Nf6 {[%clk 0:02:59.3]} 2. g3 {[%clk 0:03:01.3]}
2... g6 {[%clk 0:02:58.7]} 3. Bg2 {[%clk 0:03:01.3]} 3... Bg7 {[%clk 0:02:59.4]}
4. O-O {[%clk 0:03:01.5]} 4... O-O {[%clk 0:03:00]} 5. d4 {[%clk 0:03:00.6]}
5... d5 {[%clk 0:03:00.1]} 6. a4 {[%clk 0:02:53.2]} 6... c6 {[%clk 0:02:54.6]}
7. a5 {[%clk 0:02:48.6]} 7... Nbd7 {[%clk 0:02:47.4]} 8. c4 {[%clk 0:02:45.2]}
8... Re8 {[%clk 0:02:46.2]} 9. Nc3 {[%clk 0:02:40.4]} 9... dxc4 {[%clk
0:02:38.8]} 10. e4 {[%clk 0:02:30]} 10... e5 {[%clk 0:02:27.9]} 11. dxe5 {[%clk
0:02:07.2]} 11... Ng4 {[%clk 0:02:18.9]} 12. e6 {[%clk 0:01:42.7]} 12... Rxe6
{[%clk 0:02:11.1]} 13. Ng5 {[%clk 0:01:39.9]} 13... Ngf6 {[%clk 0:01:46.3]} 14.
Nxe6 {[%clk 0:01:39.7]} 14... fxe6 {[%clk 0:01:47.2]} 15. Qa4 {[%clk 0:01:30.4]}
15... Ne5 {[%clk 0:01:35.3]} 16. Bf4 {[%clk 0:01:29.5]} 16... Nfd7 {[%clk
0:01:32.1]} 17. Rad1 {[%clk 0:01:28.8]} 17... Qc7 {[%clk 0:01:25.8]} 18. Rd2
{[%clk 0:01:21.7]} 18... Rb8 {[%clk 0:01:14.2]} 19. Rfd1 {[%clk 0:01:20.8]}
19... b5 {[%clk 0:01:14.1]} 20. axb6 {[%clk 0:01:20.4]} 20... axb6 {[%clk
0:01:13.1]} 21. Bxe5 {[%clk 0:01:09.8]} 21... Nxe5 {[%clk 0:01:03.2]} 22. Ne2
{[%clk 0:00:47.3]} 22... b5 {[%clk 0:00:59.7]} 23. Qc2 {[%clk 0:00:47.1]} 23...
Ba6 {[%clk 0:00:50.9]} 24. Nf4 {[%clk 0:00:46.4]} 24... Qe7 {[%clk 0:00:48.3]}
25. b3 {[%clk 0:00:43.8]} 25... g5 {[%clk 0:00:45.9]} 26. Nh5 {[%clk 0:00:42.6]}
26... Qf7 {[%clk 0:00:43]} 27. Nxg7 {[%clk 0:00:41.5]} 27... Kxg7 {[%clk
0:00:38.8]} 28. bxc4 {[%clk 0:00:40.7]} 28... bxc4 {[%clk 0:00:38.8]} 29. Qc3
{[%clk 0:00:39.7]} 29... Qf6 {[%clk 0:00:36.7]} 30. Qa5 {[%clk 0:00:36]} 30...
Bb5 {[%clk 0:00:36]} 31. Qc7+ {[%clk 0:00:35.8]} 31... Kg6 {[%clk 0:00:33.2]}
32. Rd8 {[%clk 0:00:32]} 32... Rxd8 {[%clk 0:00:25.5]} 33. Rxd8 {[%clk
0:00:31.8]} 33... Nd3 {[%clk 0:00:23.7]} 34. f4 {[%clk 0:00:15.3]} 34... Qd4+
{[%clk 0:00:23.3]} 35. Rxd4 {[%clk 0:00:14.5]} 35... gxf4 {[%clk 0:00:20]} 36.
gxf4 {[%clk 0:00:13.3]} 36... c3 {[%clk 0:00:18]} 37. f5+ {[%clk 0:00:13.6]}
37... Kf6 {[%clk 0:00:16.7]} 38. Qd8+ {[%clk 0:00:11.7]} 38... Ke5 {[%clk
0:00:16.6]} 39. Qd6+ {[%clk 0:00:12.1]} 39... Kf6 {[%clk 0:00:16.4]} 40. Qxe6+
{[%clk 0:00:13]} 40... Kg5 {[%clk 0:00:16.4]} 41. Qe7+ {[%clk 0:00:11]} 41...
Kf4 {[%clk 0:00:16.4]} 42. Rxd3 {[%clk 0:00:09.8]} 42... Bxd3 {[%clk 0:00:14.8]}
43. Qc5 {[%clk 0:00:10.4]} 43... c2 {[%clk 0:00:13.7]} 44. Qc3 {[%clk
0:00:10.8]} 44... Be2 {[%clk 0:00:12.1]} 45. f6 {[%clk 0:00:09.2]} 45... Bg4
{[%clk 0:00:12.2]} 46. f7 {[%clk 0:00:09.4]} 46... Be6 {[%clk 0:00:12.1]} 47.
f8=Q+ {[%clk 0:00:09.8]} 47... Kg5 {[%clk 0:00:12.8]} 48. Qff6+ {[%clk
0:00:09.7]} 48... Kh5 {[%clk 0:00:12.6]} 49. Bf3+ {[%clk 0:00:09.1]} 49... Bg4
{[%clk 0:00:10.8]} 50. Bxg4+ {[%clk 0:00:09.6]} 50... Kxg4 {[%clk 0:00:11.4]}
51. Qcf3# {[%clk 0:00:10.3]} 1-0

[Event "Early-Titled-Tuesday-Blitz-July-09-2024"]
[Site "Chess.com"]
[Date "2024.07.09"]
[Round "1"]
[White "DanylaBagrov"]
[Black "Sasha_Solovev_777"]
[Result "0-1"]
[WhiteElo "2593"]
[BlackElo "2293"]
[TimeControl "180+1"]
[EndTime "8:07:42 PDT"]
[Termination "Sasha_Solovev_777 won by checkmate"]

1. e4 {[%clk 0:02:59]} 1... c5 {[%clk 0:02:58.2]} 2. Nf3 {[%clk 0:02:55.1]} 2...
d6 {[%clk 0:02:58.3]} 3. Bb5+ {[%clk 0:02:54.9]} 3... Nd7 {[%clk 0:02:57.5]} 4.
O-O {[%clk 0:02:54.5]} 4... a6 {[%clk 0:02:57.4]} 5. Bd3 {[%clk 0:02:54.9]} 5...
g6 {[%clk 0:02:50.4]} 6. c3 {[%clk 0:02:53.3]} 6... Bg7 {[%clk 0:02:50.5]} 7.
Bc2 {[%clk 0:02:52.9]} 7... e5 {[%clk 0:02:50.4]} 8. d4 {[%clk 0:02:51.8]} 8...
Ne7 {[%clk 0:02:47]} 9. Nbd2 {[%clk 0:02:44.9]} 9... cxd4 {[%clk 0:02:45.5]} 10.
cxd4 {[%clk 0:02:44.9]} 10... exd4 {[%clk 0:02:40.1]} 11. Nc4 {[%clk 0:02:41.9]}
11... Ne5 {[%clk 0:02:36.6]} 12. Bb3 {[%clk 0:02:23.5]} 12... b5 {[%clk
0:02:25.2]} 13. Na3 {[%clk 0:02:03]} 13... Nxf3+ {[%clk 0:01:58.7]} 14. Qxf3
{[%clk 0:02:03.9]} 14... O-O {[%clk 0:01:53.5]} 15. Bg5 {[%clk 0:01:51.2]} 15...
Be6 {[%clk 0:01:48.6]} 16. Nc2 {[%clk 0:01:48.4]} 16... Bxb3 {[%clk 0:01:33.2]}
17. axb3 {[%clk 0:01:49.3]} 17... Qd7 {[%clk 0:01:33.5]} 18. Nb4 {[%clk
0:01:47]} 18... a5 {[%clk 0:01:26.9]} 19. Bxe7 {[%clk 0:01:40.6]} 19... Qxe7
{[%clk 0:01:23.4]} 20. Nd5 {[%clk 0:01:41]} 20... Qe5 {[%clk 0:01:18.4]} 21. Qd3
{[%clk 0:01:40.2]} 21... b4 {[%clk 0:01:06.9]} 22. f4 {[%clk 0:01:31.8]} 22...
Qh5 {[%clk 0:01:06.4]} 23. Rfc1 {[%clk 0:01:14.7]} 23... Kh8 {[%clk 0:00:50.7]}
24. Rc7 {[%clk 0:01:10.1]} 24... f5 {[%clk 0:00:44]} 25. Re1 {[%clk 0:01:07.8]}
25... fxe4 {[%clk 0:00:41.1]} 26. Qxe4 {[%clk 0:01:08.7]} 26... Qf5 {[%clk
0:00:27.3]} 27. Qe7 {[%clk 0:01:05.3]} 27... Rg8 {[%clk 0:00:20.6]} 28. Nb6
{[%clk 0:01:01.3]} 28... Raf8 {[%clk 0:00:19.1]} 29. Nc4 {[%clk 0:00:57.6]}
29... Qxf4 {[%clk 0:00:15.8]} 30. h3 {[%clk 0:00:50.9]} 30... h5 {[%clk
0:00:07.7]} 31. Nxd6 {[%clk 0:00:44.9]} 31... d3 {[%clk 0:00:07.5]} 32. Nf7+
{[%clk 0:00:40.4]} 32... Kh7 {[%clk 0:00:07.4]} 33. Ng5+ {[%clk 0:00:40.7]}
33... Kh6 {[%clk 0:00:07.5]} 34. Ne6 {[%clk 0:00:38.8]} 34... Qf2+ {[%clk
0:00:07.4]} 35. Kh2 {[%clk 0:00:37]} 35... Qxe1 {[%clk 0:00:04.2]} 36. Qg5+
{[%clk 0:00:08.2]} 36... Kh7 {[%clk 0:00:04.3]} 37. Nf4 {[%clk 0:00:05.4]} 37...
Qe5 {[%clk 0:00:03.6]} 38. Qxg6+ {[%clk 0:00:05.1]} 38... Kh8 {[%clk 0:00:03.9]}
39. Rc4 {[%clk 0:00:04.4]} 39... Rxf4 {[%clk 0:00:02.9]} 40. g3 {[%clk
0:00:04.1]} 40... Rf2+ {[%clk 0:00:02.9]} 41. Kg1 {[%clk 0:00:05]} 41... Qe1#
{[%clk 0:00:03.6]} 0-1